bitfinex-derivatives/quotes_BTCF0:USTF0_20250130
["timestamp","ask_amount","ask_price","bid_price","bid_amount"]
[1738234792359,0.3941016,105420.0,105410.0,0.61865145]
[1738234792764,0.2043426,105420.0,105410.0,0.61865145]
[1738234795162,0.3940876,105420.0,105410.0,0.61865145]
[1738234795361,0.65000834,105420.0,105410.0,0.61865145]
[1738234797770,0.61880834,105420.0,105410.0,0.61865145]
[1738234799265,0.65210834,105420.0,105410.0,0.61865145]
[1738234802078,0.65210834,105420.0,105410.0,0.63173137]
[1738234802269,0.3961876,105420.0,105410.0,0.63173137]
[1738234803972,0.7569876,105420.0,105410.0,0.27093137]
[1738234804173,0.82507605,105420.0,105410.0,0.20284292]
[1738234804874,0.82507605,105420.0,105410.0,0.27093137]
[1738234806479,0.7569876,105420.0,105410.0,0.27093137]
[1738234807376,0.82668039,105420.0,105410.0,0.27093137]
[1738234807574,0.89476884,105420.0,105410.0,0.27093137]
[1738234807774,0.89476884,105420.0,105410.0,0.01307992]
[1738234807976,0.189763,105410.0,105400.0,0.61880005]
[1738234808177,0.253563,105410.0,105400.0,0.61880005]
[1738234809581,0.253563,105410.0,105400.0,0.61980005]
[1738234810977,0.253563,105410.0,105400.0,0.63286357]
[1738234813183,0.253563,105410.0,105400.0,0.70095202]
[1738234814793,0.3897399,105410.0,105400.0,0.37500612]
[1738234814996,0.189817,105380.0,105370.0,0.39753334]
[1738234815185,0.214937,105380.0,105370.0,0.41699691]
[1738234815380,0.6867939,105380.0,105370.0,0.23983867]
[1738234815686,0.7183939,105380.0,105370.0,0.23983867]
[1738234815988,0.7183939,105380.0,105370.0,0.22716191]
[1738234816188,0.7445539,105380.0,105370.0,0.24116191]
[1738234816988,0.359835,105370.0,105360.0,0.09469686]
[1738234817187,0.359835,105370.0,105340.0,0.39753334]
[1738234817188,0.189871,105350.0,105340.0,0.39753334]
[1738234817382,0.7120879,105350.0,105340.0,0.39753334]
[1738234817582,0.64399945,105350.0,105340.0,0.39753334]
[1738234818190,0.189871,105350.0,105340.0,1.01631079]
[1738234818488,0.0001426,105360.0,105340.0,0.4969769]
[1738234818690,0.0001426,105360.0,105350.0,0.29371859]
[1738234818898,0.0001426,105360.0,105350.0,0.35701859]
[1738234819087,0.0001426,105360.0,105350.0,0.71781859]
[1738234819985,0.0001426,105360.0,105350.0,0.71981859]
[1738234820681,0.0001426,105360.0,105350.0,0.71781859]
[1738234820881,0.0011426,105360.0,105350.0,0.72481859]
[1738234822484,0.0011426,105360.0,105350.0,0.72681859]
[1738234823291,0.14262285,105360.0,105350.0,0.72681859]
[1738234823998,0.14262285,105360.0,105350.0,0.72881859]
[1738234825185,0.14262285,105360.0,105350.0,0.624961]
[1738234826185,0.14262285,105360.0,105350.0,0.6373207]
[1738234826495,0.33247585,105360.0,105350.0,0.2765207]
[1738234826689,0.43633344,105360.0,105350.0,0.2765207]
[1738234827288,0.65565319,105360.0,105350.0,0.2765207]
[1738234827481,0.29485319,105360.0,105350.0,0.2765207]
[1738234828284,0.29485319,105360.0,105350.0,0.200861]
[1738234828583,0.35865319,105360.0,105350.0,0.200861]
[1738234828999,0.74489319,105360.0,105350.0,0.200861]
[1738234829689,0.74489319,105360.0,105350.0,0.011]
[1738234829994,0.84875078,105360.0,105350.0,0.011]
[1738234830194,0.74489319,105360.0,105350.0,0.011]
[1738234831294,1.05614975,105360.0,105350.0,0.011]
[1738234831694,1.05614975,105360.0,105350.0,0.200871]
[1738234835000,1.03070975,105360.0,105350.0,0.200871]
[1738234835199,0.88633344,105360.0,105350.0,0.200871]
[1738234836287,1.05633344,105360.0,105350.0,0.200871]
[1738234836693,0.95247585,105360.0,105350.0,0.200871]
[1738234841200,0.78247585,105360.0,105350.0,0.200871]
[1738234841893,0.81077191,105360.0,105350.0,0.200871]
[1738234843000,0.74685191,105360.0,105350.0,0.200871]
[1738234843205,0.74685191,105360.0,105350.0,0.265571]
[1738234843387,0.38605191,105360.0,105350.0,0.36942859]
[1738234843591,0.38605191,105360.0,105350.0,0.265571]
[1738234845194,0.36077191,105360.0,105350.0,0.265571]
[1738234845703,0.8254295,105360.0,105350.0,0.200871]
[1738234846706,0.65565319,105360.0,105350.0,0.200871]
[1738234847497,0.71955319,105360.0,105350.0,0.200871]
[1738234848806,0.74479319,105360.0,105350.0,0.200871]
[1738234851995,0.6409356,105360.0,105350.0,0.200871]
[1738234853509,0.5770356,105360.0,105350.0,0.200871]
[1738234853707,0.7470356,105360.0,105350.0,0.200871]
[1738234855416,0.85089319,105360.0,105350.0,0.200871]
[1738234858102,0.7470356,105360.0,105350.0,0.200871]
[1738234858615,0.5770356,105360.0,105350.0,0.200871]
[1738234859314,0.65841652,105360.0,105350.0,0.200871]
[1738234862509,0.65841652,105360.0,105350.0,0.263271]
[1738234862812,0.82841652,105360.0,105350.0,0.263271]
[1738234866114,1.05478493,105360.0,105350.0,0.263271]
[1738234867506,1.05478493,105360.0,105350.0,0.200871]
[1738234867817,0.98864252,105360.0,105350.0,0.200871]
[1738234868518,1.02104252,105360.0,105350.0,0.200871]
[1738234870121,0.189871,105350.0,105340.0,0.20202921]
[1738234870418,0.65452859,105350.0,105340.0,0.01215021]
[1738234870618,0.189889,105340.0,105330.0,0.1900416]
[1738234870810,0.29374659,105340.0,105330.0,0.1900416]
[1738234871012,0.31898659,105340.0,105330.0,0.1900416]
[1738234872217,0.48898659,105340.0,105330.0,0.1900416]
[1738234872419,0.48998659,105340.0,105330.0,0.1900416]
[1738234872721,0.49098659,105340.0,105330.0,0.1920416]
[1738234873619,0.85178659,105340.0,105330.0,0.1920416]
[1738234874223,0.85178659,105340.0,105330.0,0.0021426]
[1738234874420,0.189907,105330.0,105320.0,0.23450711]
[1738234874619,0.65456459,105330.0,105320.0,0.23450711]
[1738234874822,0.65456459,105330.0,105320.0,0.04458511]
[1738234875113,0.82456459,105330.0,105320.0,0.23451011]
[1738234875314,0.82456459,105330.0,105320.0,0.23308607]
[1738234875707,0.82456459,105330.0,105320.0,0.23508607]
[1738234875909,0.82556459,105330.0,105320.0,0.23508607]
[1738234879321,0.721707,105330.0,105320.0,0.23308607]
[1738234880021,0.551707,105330.0,105320.0,0.23308607]
[1738234881214,0.001,105330.0,105320.0,0.69774366]
[1738234881617,0.07076207,105330.0,105320.0,0.69774366]
[1738234882014,0.24076207,105330.0,105320.0,0.69774366]
[1738234882724,0.43066907,105330.0,105320.0,0.59388607]
[1738234883017,0.89532666,105330.0,105320.0,0.23308607]
[1738234885716,1.12169507,105330.0,105320.0,0.23308607]
[1738234887025,1.12169507,105330.0,105320.0,0.20178607]
[1738234889327,0.99597532,105330.0,105320.0,0.20178607]
[1738234891827,0.89211773,105330.0,105320.0,0.20178607]
[1738234892228,0.89211773,105330.0,105320.0,0.30564366]
[1738234892420,0.74727773,105330.0,105320.0,0.30564366]
[1738234893022,0.74727773,105330.0,105320.0,0.20178607]
[1738234893919,0.72211773,105330.0,105320.0,0.20178607]
[1738234895020,0.89211773,105330.0,105320.0,0.20178607]
[1738234896824,0.92101112,105330.0,105320.0,0.20178607]
[1738234897030,0.56021112,105330.0,105320.0,0.20178607]
[1738234897730,0.56021112,105330.0,105320.0,0.56258607]
[1738234901119,0.84803213,105330.0,105320.0,0.56258607]
[1738234903238,0.84803213,105330.0,105320.0,0.66644366]
[1738234903422,0.48812513,105330.0,105320.0,0.66644366]
[1738234904318,0.28882101,105330.0,105320.0,0.66644366]
[1738234904522,0.28882101,105330.0,105320.0,0.69160366]
[1738234908028,0.17178649,105330.0,105320.0,0.69160366]
[1738234912230,0.19930412,105350.0,105320.0,0.60553625]
[1738234912427,0.19930412,105350.0,105340.0,0.65454659]
[1738234912627,0.36930412,105350.0,105340.0,0.65454659]
[1738234913037,0.07315511,105350.0,105340.0,0.65454659]
[1738234913740,0.08898947,105360.0,105350.0,0.189871]
[1738234913941,0.08898947,105360.0,105350.0,0.39172859]
[1738234914240,0.08898947,105360.0,105350.0,0.75252859]
[1738234914941,0.09298947,105360.0,105350.0,0.75252859]
[1738234916142,0.09498947,105360.0,105350.0,0.75252859]
[1738234917039,0.0075669,105360.0,105350.0,0.75252859]
[1738234918036,0.0075669,105360.0,105350.0,0.77115085]
[1738234920130,0.0075669,105360.0,105350.0,0.20849326]
[1738234920131,0.66065319,105360.0,105350.0,0.20849326]
[1738234920429,0.75505319,105360.0,105350.0,0.20849326]
[1738234920633,0.6511956,105360.0,105350.0,0.20849326]
[1738234922125,0.8211956,105360.0,105350.0,0.20849326]
[1738234923243,0.92505319,105360.0,105350.0,0.20849326]
[1738234923437,0.8211956,105360.0,105350.0,0.20849326]
[1738234924027,0.95017319,105360.0,105350.0,0.20849326]
[1738234924341,0.95017319,105360.0,105350.0,0.189871]
[1738234925030,0.189886,105350.0,105340.0,0.189878]
[1738234925236,0.550686,105350.0,105340.0,0.189878]
[1738234926334,0.65554359,105350.0,105340.0,0.189878]
[1738234927031,0.65554359,105350.0,105330.0,0.31187756]
[1738234927032,0.189889,105340.0,105330.0,0.31187756]
[1738234927238,0.253789,105340.0,105330.0,0.31187756]
[1738234927447,0.285589,105340.0,105330.0,0.31187756]
[1738234927743,0.285589,105340.0,105330.0,0.20801997]
[1738234928131,0.285589,105340.0,105330.0,0.21001997]
[1738234928843,0.38944659,105340.0,105330.0,0.21001997]
[1738234929233,0.285589,105340.0,105330.0,0.21001997]
[1738234930039,0.285589,105340.0,105330.0,0.57081997]
[1738234930238,0.285589,105340.0,105330.0,0.21001997]
[1738234931940,0.285589,105340.0,105330.0,0.67467756]
[1738234932338,0.433389,105350.0,105330.0,0.48477956]
[1738234932339,0.62043011,105350.0,105330.0,0.48477956]
[1738234932641,0.62043011,105350.0,105340.0,0.29374659]
[1738234933841,0.62143011,105350.0,105340.0,0.29374659]
[1738234934644,0.07074911,105350.0,105340.0,0.65454659]
[1738234935543,0.07174911,105350.0,105340.0,0.65454659]
[1738234935739,0.07174911,105350.0,105340.0,0.78352418]
[1738234935935,0.0001426,105360.0,105340.0,0.67966659]
[1738234936129,0.08742421,105370.0,105360.0,0.29371059]
[1738234936335,0.25742421,105370.0,105360.0,0.65451059]
[1738234937435,0.26442421,105370.0,105360.0,0.65451059]
[1738234938934,0.26742421,105370.0,105360.0,0.65451059]
[1738234939647,0.18,105370.0,105360.0,0.65451059]
[1738234943842,0.18,105370.0,105360.0,0.67243629]
[1738234945550,0.37883139,105370.0,105360.0,0.67243629]
[1738234945745,0.20883139,105370.0,105360.0,0.67243629]
[1738234948750,0.20883139,105370.0,105360.0,0.77629388]
[1738234949751,0.20883139,105370.0,105360.0,0.67243629]
[1738234956755,0.01,105370.0,105360.0,0.67243629]
[1738234958662,0.199835,105370.0,105360.0,0.5685787]
[1738234959553,0.369835,105370.0,105360.0,0.5685787]
[1738234961155,0.369835,105370.0,105360.0,0.2077787]
[1738234961355,0.83449259,105370.0,105360.0,0.2077787]
[1738234961556,0.92301259,105370.0,105360.0,0.2077787]
[1738234961760,0.92301259,105370.0,105360.0,0.0179257]
[1738234961960,0.92301259,105370.0,105360.0,0.189853]
[1738234963669,0.189853,105360.0,105350.0,0.1900026]
[1738234963865,0.68741059,105360.0,105350.0,0.20492939]
[1738234964668,0.68741059,105360.0,105350.0,0.1900026]
[1738234964975,0.68941059,105360.0,105350.0,0.1900026]
[1738234965174,0.85941059,105360.0,105350.0,0.1900026]
[1738234966574,0.86341059,105360.0,105350.0,0.1900026]
[1738234966962,0.69341059,105360.0,105350.0,0.1900026]
[1738234967875,0.7631391,105360.0,105350.0,0.1900026]
[1738234970885,0.69341059,105360.0,105350.0,0.1900026]
[1738234976582,0.76315376,105360.0,105350.0,0.1900026]
[1738234980587,0.7274715,105360.0,105350.0,0.1900026]
[1738234982294,0.79564683,105360.0,105350.0,0.1900026]
[1738234982488,0.7274715,105360.0,105350.0,0.1900026]
[1738234983389,0.7274715,105360.0,105350.0,0.0001426]
[1738234983778,0.79564683,105360.0,105350.0,0.0001426]
[1738234984588,0.189871,105350.0,105340.0,0.01538947]
[1738234984888,0.189889,105340.0,105330.0,0.0943]
[1738234985082,0.61886433,105340.0,105330.0,0.0309]
[1738234985282,0.61886433,105340.0,105330.0,0.04597487]
[1738234985990,0.42897533,105340.0,105320.0,0.61903393]
[1738234986181,0.25808233,105330.0,105320.0,0.61903393]
[1738234986578,0.189907,105330.0,105320.0,0.5508586]
[1738234987002,0.550707,105330.0,105320.0,0.1900586]
[1738234987577,0.551707,105330.0,105320.0,0.1920586]
[1738234988383,0.551707,105330.0,105320.0,0.29599498]
[1738234988784,0.551707,105330.0,105320.0,0.29699498]
[1738234990095,0.551707,105330.0,105320.0,0.31230686]
[1738234990291,0.190907,105330.0,105320.0,0.67310686]
[1738234990494,0.001,105330.0,105320.0,0.69830686]
[1738234990683,0.001,105330.0,105320.0,0.80224324]
[1738234990884,0.001,105330.0,105320.0,0.69830686]
[1738234991888,0.001,105330.0,105320.0,0.80224324]
[1738234992085,0.1900206,105350.0,105320.0,0.61232724]
[1738234992286,0.3600206,105350.0,105340.0,0.65462538]
[1738234993691,0.3610206,105350.0,105340.0,0.29382538]
[1738234993997,0.7218206,105350.0,105340.0,0.29382538]
[1738234995099,0.7228206,105350.0,105340.0,0.29382538]
[1738234995286,0.3620206,105350.0,105340.0,0.32482538]
[1738234996187,0.1721426,105350.0,105340.0,0.32482538]
[1738234997898,0.1721426,105350.0,105340.0,0.68562538]
[1738234998398,0.0021426,105350.0,105340.0,0.68562538]
[1738235000591,0.22965186,105350.0,105340.0,0.68562538]
[1738235001594,0.22965186,105350.0,105340.0,0.7008425]
[1738235001990,0.22965186,105350.0,105340.0,0.7259625]
[1738235002598,0.39965186,105350.0,105340.0,0.7259625]
[1738235003091,0.1721426,105350.0,105340.0,0.7259625]
[1738235006001,0.0021426,105350.0,105340.0,0.7008425]
[1738235006399,0.1920136,105350.0,105340.0,0.7008425]
[1738235006599,0.1920136,105350.0,105340.0,0.20510612]
[1738235008111,0.1920136,105350.0,105340.0,0.3090425]
[1738235008604,0.0021426,105350.0,105340.0,0.3090425]
[1738235008799,0.0021426,105350.0,105340.0,0.3403425]
[1738235009110,0.0021426,105350.0,105340.0,0.7011425]
[1738235010213,0.0021426,105350.0,105340.0,0.7263025]
[1738235020022,0.0021426,105350.0,105340.0,0.7011425]
[1738235020725,0.1920136,105350.0,105340.0,0.7011425]
[1738235021415,0.0021426,105350.0,105340.0,0.7011425]
[1738235028724,0.0021426,105350.0,105340.0,0.7262625]
[1738235030318,0.0021426,105350.0,105340.0,0.7011425]
[1738235031726,0.1920136,105350.0,105340.0,0.7011425]
[1738235031922,0.1920136,105350.0,105340.0,0.56590612]
[1738235032732,0.1920136,105350.0,105340.0,0.20510612]
[1738235033324,0.2557136,105350.0,105340.0,0.20510612]
[1738235040636,0.2557136,105350.0,105340.0,0.27328291]
[1738235041029,0.51148365,105350.0,105340.0,0.27328291]
[1738235042135,0.51148365,105350.0,105340.0,0.3414597]
[1738235042136,0.44778365,105350.0,105340.0,0.3414597]
[1738235042337,0.25791265,105350.0,105340.0,0.3414597]
[1738235042630,0.25791265,105350.0,105340.0,0.7325597]
[1738235043840,0.42915207,105350.0,105340.0,0.7325597]
[1738235044636,0.42915207,105350.0,105340.0,0.7000656]
[1738235044937,0.42915207,105350.0,105340.0,0.7253056]
[1738235046637,0.1721426,105350.0,105340.0,0.7253056]
[1738235050739,0.1721426,105350.0,105340.0,0.3392656]
[1738235051033,0.3620136,105350.0,105340.0,0.23540612]
[1738235052929,0.3620136,105350.0,105340.0,0.20510612]
[1738235055236,0.3951136,105350.0,105340.0,0.20510612]
[1738235055433,0.189889,105340.0,105330.0,0.189901]
[1738235055633,0.254189,105340.0,105330.0,0.29376048]
[1738235056743,0.222389,105340.0,105330.0,0.29376048]
[1738235057643,0.222389,105340.0,105330.0,0.30907654]
[1738235058043,0.222389,105340.0,105330.0,0.31207654]
[1738235058538,0.222389,105340.0,105330.0,0.67287654]
[1738235063836,0.222389,105340.0,105330.0,0.31207654]
[1738235064550,0.222389,105340.0,105330.0,0.27640421]
[1738235065742,0.254589,105340.0,105330.0,0.27640421]
[1738235066840,0.254589,105340.0,105330.0,0.20821706]
[1738235067445,0.424589,105340.0,105330.0,0.20821706]
[1738235067749,0.254589,105340.0,105330.0,0.27640421]
[1738235068345,0.32277615,105340.0,105330.0,0.20821706]
[1738235068843,0.254589,105340.0,105330.0,0.20821706]
[1738235069049,0.32277615,105340.0,105330.0,0.20821706]
[1738235069444,0.254589,105340.0,105330.0,0.20821706]
[1738235069643,0.424589,105340.0,105330.0,0.20821706]
[1738235069842,0.424589,105340.0,105330.0,0.27640421]
[1738235073969,0.424589,105340.0,105330.0,0.20821706]
[1738235074169,0.49277615,105340.0,105330.0,0.20821706]
[1738235074472,0.32277615,105340.0,105330.0,0.20821706]
[1738235075264,0.254589,105340.0,105330.0,0.20821706]
[1738235075466,0.32277615,105340.0,105330.0,0.20821706]
[1738235076466,0.68357615,105340.0,105330.0,0.01831606]
[1738235077269,0.68357615,105340.0,105330.0,0.20822306]
[1738235078770,0.615389,105340.0,105330.0,0.27641021]
[1738235079471,0.75332908,105340.0,105330.0,0.20822306]
[1738235080475,0.68514193,105340.0,105330.0,0.20822306]
[1738235080770,0.62044193,105340.0,105330.0,0.27641021]
[1738235081074,0.79044193,105340.0,105330.0,0.27641021]
[1738235081573,0.85862908,105340.0,105330.0,0.20822306]
[1738235082661,0.78887615,105340.0,105330.0,0.20822306]
[1738235088982,0.61887615,105340.0,105330.0,0.20822306]
[1738235089381,0.61887615,105340.0,105330.0,0.01831606]
[1738235089885,0.6870633,105340.0,105330.0,0.01831606]
[1738235090381,0.61887615,105340.0,105330.0,0.01831606]
[1738235090580,0.6870633,105340.0,105330.0,0.01831606]
[1738235092584,0.75681988,105340.0,105330.0,0.01831606]
[1738235095690,0.68863273,105340.0,105330.0,0.01831606]
[1738235098593,0.61887615,105340.0,105330.0,0.01831606]
[1738235103787,0.68863274,105340.0,105330.0,0.01831606]
[1738235107993,0.61887615,105340.0,105330.0,0.01831606]
[1738235109398,0.61887615,105340.0,105330.0,0.004]
[1738235109604,0.6870633,105340.0,105330.0,0.004]
[1738235110002,0.91494888,105340.0,105330.0,0.004]
[1738235113300,0.92778923,105340.0,105330.0,0.004]
[1738235113711,1.25331659,105340.0,105330.0,0.004]
[1738235114516,1.18512944,105340.0,105330.0,0.004]
[1738235117406,1.25331659,105340.0,105330.0,0.004]
[1738235120614,1.25331659,105340.0,105330.0,0.004]
[1738235129326,0.25809415,105330.0,105320.0,0.20287781]
[1738235129525,0.64465415,105330.0,105320.0,0.20287781]
[1738235130430,0.64465415,105330.0,105320.0,0.20387781]
[1738235131028,0.64565415,105330.0,105320.0,0.20487781]
[1738235132715,0.81565415,105330.0,105320.0,0.20487781]
[1738235134927,0.747467,105330.0,105320.0,0.20487781]
[1738235135228,0.747467,105330.0,105320.0,0.27306496]
[1738235135427,0.190907,105330.0,105320.0,0.63386496]
[1738235135724,0.190907,105330.0,105320.0,0.70205211]
[1738235136227,0.190907,105330.0,105320.0,0.63386496]
[1738235136419,0.190907,105330.0,105320.0,0.27306496]
[1738235139025,0.360907,105330.0,105320.0,0.27306496]
[1738235140427,0.360907,105330.0,105320.0,0.63386496]
[1738235140927,0.360907,105330.0,105320.0,0.27306496]
[1738235141130,0.360907,105330.0,105320.0,0.63386496]
[1738235141630,0.78989415,105330.0,105320.0,0.01495281]
[1738235142431,0.81565415,105330.0,105320.0,0.01495281]
[1738235144032,0.64565415,105330.0,105320.0,0.01495281]
[1738235144429,0.7138413,105330.0,105320.0,0.0021426]
[1738235144833,0.189925,105320.0,105310.0,0.0926]
[1738235145129,0.8570993,105320.0,105310.0,0.0622]
[1738235145336,0.189943,105310.0,105300.0,0.10142434]
[1738235145636,0.61893015,105310.0,105300.0,0.11393608]
[1738235147633,0.64469015,105310.0,105300.0,0.11393608]
[1738235147834,0.64569015,105310.0,105300.0,0.11393608]
[1738235148335,0.64669015,105310.0,105300.0,0.11393608]
[1738235153340,0.45674715,105310.0,105300.0,0.11393608]
[1738235154340,0.45674715,105310.0,105300.0,0.11251174]
[1738235157137,0.7467343,105310.0,105300.0,0.1]
[1738235157638,0.8408343,105310.0,105300.0,0.1]
[1738235157846,0.77264715,105310.0,105300.0,0.1]
[1738235160345,0.54984715,105310.0,105300.0,0.1]
[1738235160844,0.73979015,105310.0,105300.0,0.1]
[1738235163652,0.88403015,105310.0,105300.0,0.1]
[1738235163841,0.64557015,105310.0,105300.0,0.1]
[1738235164350,0.81557015,105310.0,105300.0,0.1]
[1738235164552,0.78993015,105310.0,105300.0,0.1]
[1738235164853,0.81557015,105310.0,105300.0,0.1]
[1738235169347,0.64557015,105310.0,105300.0,0.1]
[1738235171441,0.64545015,105310.0,105300.0,0.1]
[1738235176743,0.71522797,105310.0,105300.0,0.1]
[1738235178853,0.77682797,105310.0,105300.0,0.1]
[1738235180345,0.84501512,105310.0,105300.0,0.1]
[1738235180853,0.77682797,105310.0,105300.0,0.1]
[1738235181048,0.84501512,105310.0,105300.0,0.1]
[1738235181359,0.189961,105300.0,105290.0,0.0001426]
[1738235181656,0.7203353,105300.0,105290.0,0.0001426]
[1738235183556,0.7213353,105300.0,105290.0,0.0001426]
[1738235184354,0.189997,105280.0,105270.0,0.1076221]
[1738235184660,0.6871713,105280.0,105270.0,0.1076221]
[1738235184858,0.61898415,105280.0,105270.0,0.1076221]
[1738235185459,0.61998415,105280.0,105270.0,0.1076221]
[1738235185756,0.6881713,105280.0,105270.0,0.1076221]
[1738235186962,0.61998415,105280.0,105270.0,0.1076221]
[1738235187267,0.8599743,105280.0,105260.0,0.190024]
[1738235187564,0.8599743,105280.0,105250.0,0.42898715]
[1738235187565,0.190034,105260.0,105250.0,0.71403415]
[1738235187749,0.25822115,105260.0,105250.0,0.71403415]
[1738235188358,0.190034,105260.0,105250.0,0.71403415]
[1738235188655,0.191034,105260.0,105250.0,0.71403415]
[1738235188862,0.191034,105260.0,105250.0,0.72617167]
[1738235190252,0.192034,105260.0,105250.0,0.72617167]
[1738235191163,0.362034,105260.0,105250.0,0.72617167]
[1738235192455,0.192034,105260.0,105250.0,0.72617167]
[1738235193760,0.26022115,105260.0,105250.0,0.72617167]
[1738235194154,0.26022115,105260.0,105250.0,0.29718452]
[1738235194454,0.4984083,105260.0,105250.0,0.29718452]
[1738235194858,0.43022115,105260.0,105250.0,0.29718452]
[1738235195256,0.42922115,105260.0,105250.0,0.29718452]
[1738235195452,0.43022115,105260.0,105250.0,0.29718452]
[1738235195652,0.4984083,105260.0,105250.0,0.29718452]
[1738235196862,0.43022115,105260.0,105250.0,0.29718452]
[1738235197560,0.62102115,105260.0,105250.0,0.29718452]
[1738235199955,0.6892083,105260.0,105250.0,0.29718452]
[1738235200362,0.62102115,105260.0,105250.0,0.29739185]
[1738235202363,0.62002115,105260.0,105250.0,0.29739185]
[1738235202661,0.62102115,105260.0,105250.0,0.29739185]
[1738235202869,0.64654115,105260.0,105250.0,0.29739185]
[1738235203370,0.7137283,105260.0,105250.0,0.04534485]
[1738235204769,0.7137283,105260.0,105250.0,0.00020733]
[1738235205066,0.7453283,105260.0,105250.0,0.00020733]
[1738235206969,0.9153283,105260.0,105250.0,0.00020733]
[1738235212064,0.7453283,105260.0,105250.0,0.00020733]
[1738235213067,0.9152083,105260.0,105250.0,0.00020733]
[1738235213470,0.8898083,105260.0,105250.0,0.00020733]
[1738235213668,0.9152083,105260.0,105250.0,0.00020733]
[1738235214873,0.9151683,105260.0,105250.0,0.00020733]
[1738235217976,0.7451683,105260.0,105250.0,0.00020733]
[1738235226572,0.7198083,105260.0,105250.0,0.00020733]
[1738235226771,0.7450883,105260.0,105250.0,0.00020733]
[1738235232582,0.7450083,105260.0,105250.0,0.00020733]
[1738235243788,0.7198083,105260.0,105250.0,0.00020733]
[1738235243987,0.19007,105240.0,105230.0,0.285186]
[1738235244185,0.64425715,105240.0,105230.0,0.285186]
[1738235245285,0.64525715,105240.0,105230.0,0.285186]
[1738235245687,0.64625715,105240.0,105230.0,0.29727393]
[1738235246288,0.64525715,105240.0,105230.0,0.29727393]
[1738235246489,0.7144443,105240.0,105230.0,0.29727393]
[1738235246891,0.7134443,105240.0,105230.0,0.29727393]
[1738235247186,0.7144443,105240.0,105230.0,0.29727393]
[1738235247696,0.8844443,105240.0,105230.0,0.29727393]
[1738235248085,0.81625715,105240.0,105230.0,0.29727393]
[1738235250994,0.64625715,105240.0,105230.0,0.29727393]
[1738235254593,0.64625715,105240.0,105230.0,0.10718793]
[1738235254794,0.7144443,105240.0,105230.0,0.10718793]
[1738235258199,0.7144443,105240.0,105230.0,0.0951]
[1738235264415,0.190088,105230.0,105220.0,0.20205464]
[1738235264609,0.25827515,105230.0,105220.0,0.20205464]
[1738235265719,0.25927515,105230.0,105220.0,0.20205464]
[1738235267009,0.26027515,105230.0,105220.0,0.20205464]
[1738235268611,0.26027515,105230.0,105220.0,0.01195864]
[1738235268812,0.43098715,105230.0,105210.0,0.335436]
[1738235269012,0.25829315,105220.0,105210.0,0.287909]
[1738235270622,0.25929315,105220.0,105210.0,0.287909]
[1738235271516,0.26029315,105220.0,105210.0,0.287909]
[1738235273811,0.26029315,105220.0,105210.0,0.2989597]
[1738235276227,0.3284803,105220.0,105210.0,0.2989597]
[1738235277529,0.3536803,105220.0,105210.0,0.2989597]
[1738235278427,0.5236803,105220.0,105210.0,0.2989597]
[1738235288439,0.4984803,105220.0,105210.0,0.2989597]
[1738235289031,0.3284803,105220.0,105210.0,0.2989597]
[1738235289938,0.6892803,105220.0,105210.0,0.2989597]
[1738235290237,0.6892803,105220.0,105210.0,0.1088507]
[1738235292537,0.6892803,105220.0,105210.0,0.0110507]
[1738235292734,0.6892803,105220.0,105200.0,0.387428]
[1738235292735,0.4991743,105220.0,105200.0,0.387428]
[1738235292931,0.25831115,105210.0,105200.0,0.387428]
[1738235294344,0.25931115,105210.0,105200.0,0.387428]
[1738235294735,0.26031115,105210.0,105200.0,0.39840836]
[1738235297036,0.26031115,105210.0,105200.0,0.33410836]
[1738235297239,0.43031115,105210.0,105200.0,0.33410836]
[1738235299040,0.81631115,105210.0,105200.0,0.33410836]
[1738235300950,0.81631115,105210.0,105200.0,0.14398036]
[1738235301860,0.81631115,105210.0,105200.0,0.33412236]
[1738235307336,0.79111115,105210.0,105200.0,0.33412236]
[1738235311951,0.192124,105210.0,105200.0,0.40230951]
[1738235312153,0.192124,105210.0,105200.0,0.33412236]
[1738235312354,0.26031115,105210.0,105200.0,0.33412236]
[1738235317361,0.26031115,105210.0,105200.0,0.40230951]
[1738235317664,0.26031115,105210.0,105200.0,0.33412236]
[1738235317963,0.43031115,105210.0,105200.0,0.40230951]
[1738235318172,0.43031115,105210.0,105200.0,0.33412236]
[1738235319364,0.43031115,105210.0,105200.0,0.40230951]
[1738235321662,0.002,105210.0,105200.0,0.47049666]
[1738235321964,0.002,105210.0,105200.0,0.83129666]
[1738235323961,0.002,105210.0,105200.0,0.85649666]
[1738235335587,0.002,105210.0,105200.0,0.83129666]
[1738235335793,0.002,105210.0,105200.0,0.85649666]
[1738235339291,0.192124,105210.0,105200.0,0.85649666]
[1738235340197,0.192124,105210.0,105200.0,0.83129666]
[1738235344691,0.192124,105210.0,105200.0,0.47049666]
[1738235344892,0.192124,105210.0,105200.0,0.83129666]
[1738235345092,0.26031115,105210.0,105200.0,0.40230951]
[1738235345300,0.192124,105210.0,105200.0,0.40230951]
[1738235348601,0.192124,105210.0,105200.0,0.36930951]
[1738235352592,0.32451115,105210.0,105200.0,0.36930951]
[1738235352798,0.256324,105210.0,105200.0,0.36930951]
[1738235353303,0.7786983,105210.0,105200.0,0.11098036]
[1738235353604,0.71051115,105210.0,105200.0,0.1]
[1738235354904,0.88051115,105210.0,105200.0,0.1]
[1738235355901,0.87951115,105210.0,105200.0,0.1]
[1738235356205,0.88051115,105210.0,105200.0,0.1]
[1738235363209,0.34971115,105210.0,105200.0,0.35832915]
[1738235363414,0.281524,105210.0,105200.0,0.35832915]
[1738235363718,0.34971115,105210.0,105200.0,0.35832915]
[1738235367520,0.51971115,105210.0,105200.0,0.35832915]
[1738235369019,0.45551115,105210.0,105200.0,0.35832915]
[1738235370521,0.81631115,105210.0,105200.0,0.290142]
[1738235370721,0.87941115,105210.0,105200.0,0.290142]
[1738235370924,0.51861115,105210.0,105200.0,0.290142]
[1738235372923,0.87941115,105210.0,105200.0,0.290142]
[1738235386237,0.70941115,105210.0,105200.0,0.1]
[1738235392956,0.87941115,105210.0,105200.0,0.1]
[1738235395951,0.9475983,105210.0,105200.0,0.1]
[1738235398157,0.7775983,105210.0,105200.0,0.1]
[1738235401359,0.7523983,105210.0,105200.0,0.1]
[1738235401756,0.68421115,105210.0,105200.0,0.1]
[1738235401956,0.70941115,105210.0,105200.0,0.1]
[1738235403751,0.63046145,105210.0,105180.0,0.0313]
[1738235404058,0.63046145,105210.0,105160.0,0.17100791]
[1738235404059,0.190196,105170.0,105160.0,0.17100791]
[1738235404259,0.7125703,105170.0,105160.0,0.17100791]
[1738235404560,0.7125703,105170.0,105160.0,0.22801055]
[1738235404561,0.8051703,105170.0,105160.0,0.22801055]
[1738235405957,0.643596,105170.0,105160.0,0.36438485]
[1738235406158,0.550996,105170.0,105160.0,0.55459885]